{"text_format":"1","workbook":"xlsx","n_sheets":2,"sheets":["VOTACIÓN","Resultados"],"not_rendered":{"charts":0,"images":0,"macros":1,"external_links":0,"defined_names":5,"comments":0,"pivot_tables":0},"unopened":[],"bounds":{"document_bytes":16777216,"sheet_cells":100000,"rows_first":2000,"rows_last":500,"rows_between":2000,"halvings":0,"cell_chars":16384,"cell_head_chars":4096},"cells_cut":0,"cells_raw":0,"read":"whole","date_system":"1900"}

{"sheet":"VOTACIÓN","index":0,"n_rows":116,"n_cols":10,"rows_kept":116,"cut":false,"hidden":false,"merged":[[10,2,10,4],[9,1,9,4],[31,1,31,4],[53,1,53,4],[75,1,75,4],[11,2,11,4],[33,2,33,4],[55,2,55,4],[77,2,77,4],[77,7,77,9],[9,6,9,9],[10,7,10,9],[32,7,32,9],[54,7,54,9],[76,7,76,9],[31,6,31,9],[53,6,53,9],[75,6,75,9],[11,7,11,9],[33,7,33,9],[55,7,55,9],[54,2,54,4],[76,2,76,4],[32,2,32,4],[1,1,1,9],[2,1,2,2],[3,1,3,2],[2,3,2,9],[3,3,3,9],[97,1,97,4],[97,6,97,9],[98,2,98,4],[98,7,98,9],[99,2,99,4],[99,7,99,9]]}
[]
[null,"Anexo DGEEC-PRE-23\nPLANTILLA DE  TABULACION DE VOTACIONES"]
[null,"INSTITUCIÓN:"]
[null,"COOPERATIVA:"]
[]
[null,null,"TOTAL DE ASOCIADOS:",80]
[null,null,"TOTAL DE ASOCIADOS PRESENTES:",50]
[null,null,"% DE ASISTENCIA ",{"$f":"100/D6*D7","v":62.5}]
[]
[null,"Propietarios",null,null,null,null,"Suplentes"]
[null,null,"VOTACIÓN CONSEJO DE ADMINISTRACIÓN",null,null,null,null,"VOTACIÓN CONSEJO DE ADMINISTRACIÓN"]
[null,null,{"$f":"IF((SUM(Table1[Votos Obtenidos]))>D7,\"Se invalida la elección\",CONCATENATE(\"Abstinentes \",(D7-(SUM(Table1[Votos Obtenidos])))))","v":"Abstinentes 0"},null,null,null,null,{"$f":"IF((SUM(Table19[Votos Obtenidos]))>D7,\"Se invalida la elección\",CONCATENATE(\"Abstinentes \",(D7-(SUM(Table19[Votos Obtenidos])))))","v":"Abstinentes 50"}]
[null,"Nº","Apellidos y Nombre","Cédula","Votos Obtenidos",null,"Nº","Apellidos y Nombre","Cédula","Votos Obtenidos"]
[null,1,"Marta Solís Agüero",107820619,15,null,1,"Pedro Chacón Porras",110200914]
[null,2,"Jenny Chinchilla Rivera",602830257,12,null,2,"Carlos Porras Navarro",306030836]
[null,3,"Jostin Rivera Mena",305720433,10,null,3,"Susan Madrgal Monge",111820145]
[null,4,"Dora Guevara Vasquez",601880139,8,null,6,"Isaac Villalobos Navarro",305930506]
[null,5,"Vivian Chacón Porras",106150321,5,null,5,"Lucas Navarro Gutierrez",306050998]
[null,6,"Ana Beatriz Rojas Solís",107760272,null,null,6,"Marry Paz Solis Cordero",306080725]
[null,7,"Francisco Porras Navarro",107290726]
[null,8,"Susan Madrgal Monge",900770486]
[null,9,"Lucas Navarro Gutierrez",303490792]
[null,10,"Leda Cordero Jimenez",107260360]
[null,11,"Marry Paz Solis Cordero",303650273]
[null,12,"Silvia Camacho Fallas",303620422]
[null,13,"Briana Marìn Chacon",305900265]
[null,14,"Pedro Chacón Porras",109460567]
[null,15,"Carlos Porras Navarro",106720949]
[]
[]
[]
[null,"Propietarios",null,null,null,null,"Suplentes (Opcional)"]
[null,null,"VOTACIÓN COMITÉ DE VIGILANCIA",null,null,null,null,"VOTACIÓN COMITÉ DE VIGILANCIA"]
[null,null,{"$f":"IF((SUM(Table3[Votos Obtenidos]))>D7,\"Se invalida la elección\",CONCATENATE(\"Abstinentes \",(D7-(SUM(Table3[Votos Obtenidos])))))","v":"Abstinentes 50"},null,null,null,null,{"$f":"IF((SUM(Table38[Votos Obtenidos]))>D7,\"Se invalida la elección\",CONCATENATE(\"Abstinentes \",(D7-(SUM(Table38[Votos Obtenidos])))))","v":"Abstinentes 50"}]
[null,"Nº","Apellidos y Nombre","Cédula","Votos Obtenidos",null,"Nº","Apellidos y Nombre","Cédula","Votos Obtenidos"]
[null,1,"Tania  Gutierrrez Cascante",303650273,null,null,1,"Pedro Chacón Porras",306030836]
[null,2,"Susan Madrgal Monge",900770486,null,null,2,"Carlos Porras Navarro",305930506]
[null,3,"Lucas Navarro Gutierrez",107820619,null,null,3,"Yessenia Robles Queada",110200914]
[null,4,"Marry Paz Solis Cordero",107760272,null,null,6,"Susan Madrgal Monge",111820145]
[null,5,"Pedro Chacón Porras",106150321,null,null,5,"Lucas Navarro Gutierrez",306050998]
[null,6,"Carlos Porras Navarro",303620422,null,null,6,"Marry Paz Solis Cordero",306080725]
[null,7,"Leda Cordero Jimenez",107260360]
[null,8,"Teresita Castro Mata",107290726]
[null,9,"Alejandra Cordero Solano",303490792]
[null,10,"Dora Guevara Vasquez",601880139]
[null,11,"Jenny Chinchilla Rivera",602830257]
[null,12,"Jostin Rivera Mena",305720433]
[null,13,"Briana Marìn Chacon",305900265]
[null,14,"Vivian Chacón Porras",109460567]
[null,15,"Francisco Porras Navarro",106720949]
[]
[]
[]
[null,"Propietarios",null,null,null,null,"Suplentes"]
[null,null,"VOTACIÓN COMITÉ DE BIENESTAR SOCIAL Y EDUCACIÓN ",null,null,null,null,"VOTACIÓN COMITÉ DE BIENESTAR SOCIAL Y EDUCACIÓN "]
[null,null,{"$f":"IF((SUM(Table4[Votos Obtenidos]))>D7,\"Se invalida la elección\",CONCATENATE(\"Abstinentes \",(D7-(SUM(Table4[Votos Obtenidos])))))","v":"Abstinentes 50"},null,null,null,null,{"$f":"IF((SUM(Table46[Votos Obtenidos]))>D7,\"Se invalida la elección\",CONCATENATE(\"Abstinentes \",(D7-(SUM(Table46[Votos Obtenidos])))))","v":"Abstinentes 50"}]
[null,"Nº","Apellidos y Nombre","Cédula","Votos Obtenidos",null,"Nº","Apellidos y Nombre","Cédula","Votos Obtenidos"]
[null,1,"Lucas Navarro Gutierrez",107760272,null,null,1,"Pedro Chacón Porras",305930506]
[null,2,"Marry Paz Solis Cordero",106150321,null,null,2,"Carlos Porras Navarro",110200914]
[null,3,"Susan Madrgal Monge",107820619,null,null,3,"Cesar Alonso jimenez Camacho",306030836]
[null,4,"Pedro Chacón Porras",303620422,null,null,6,"Susan Madrgal Monge",111820145]
[null,5,"Carlos Porras Navarro",900770486,null,null,5,"Lucas Navarro Gutierrez",306050998]
[null,6,"Leda Cordero Jimenez",107260360,null,null,6,"Marry Paz Solis Cordero",306080725]
[null,7,"Teresita Castro Mata",107290726]
[null,8,"Tania  Gutierrrez Cascante",303650273]
[null,9,"Alejandra Cordero Solano",303490792]
[null,10,"Dora Guevara Vasquez",601880139]
[null,11,"Jenny Chinchilla Rivera",602830257]
[null,12,"Jostin Rivera Mena",305720433]
[null,13,"Briana Marìn Chacon",305900265]
[null,14,"Vivian Chacón Porras",109460567]
[null,15,"Vivian Chacón Porras",109460568]
[]
[]
[]
[null,"Propietarios",null,null,null,null,"Suplentes"]
[null,null,"VOTACIÓN COMITÉ DE AHORRO",null,null,null,null,"VOTACIÓN COMITÉ DE AHORRO"]
[null,null,{"$f":"IF((SUM(Table45[Votos Obtenidos]))>D7,\"Se invalida la elección\",CONCATENATE(\"Abstinentes \",(D7-(SUM(Table45[Votos Obtenidos])))))","v":"Abstinentes 50"},null,null,null,null,{"$f":"IF((SUM(Table457[Votos Obtenidos]))>D7,\"Se invalida la elección\",CONCATENATE(\"Abstinentes \",(D7-(SUM(Table457[Votos Obtenidos])))))","v":"Abstinentes 50"}]
[null,"Nº","Apellidos y Nombre","Cédula","Votos Obtenidos",null,"Nº","Apellidos y Nombre","Cédula","Votos Obtenidos"]
[null,1,"Leda Cordero Jimenez",107260360,null,null,1,"Lucas Navarro Gutierrez",306050998]
[null,2,"Marry Paz Solis Cordero",107760272,null,null,2,"Esmeralda Cordero Jimenez",306030836]
[null,3,"Carlos Porras Navarro",303620422,null,null,3,"Marry Paz Solis Cordero",306080725]
[null,4,"Teresita Castro Mata",107290726,null,null,4,"Susan Madrgal Monge",111820145]
[null,5,"Susan Madrgal Monge",106150321,null,null,5,"Pedro Chacón Porras",305930506]
[null,6,"Lucas Navarro Gutierrez",107820619,null,null,6,"Carlos Porras Navarro",110200914]
[null,7,"Pedro Chacón Porras",900770486]
[null,8,"Tania  Gutierrrez Cascante",303650273]
[null,9,"Alejandra Cordero Solano",303490792]
[null,10,"Dora Guevara Vasquez",601880139]
[null,11,"Jenny Chinchilla Rivera",602830257]
[null,12,"Jostin Rivera Mena",305720433]
[null,13,"Briana Marìn Chacon",305900265]
[null,14,"Vivian Chacón Porras",109460567]
[null,15,"Francisco Porras Navarro",106720949]
[]
[]
[]
[null,"Propietarios",null,null,null,null,"Suplentes"]
[null,null,"VOTACIÓN COMITÉ ASESOR ",null,null,null,null,"VOTACIÓN COMITÉASESOR "]
[null,null,{"$f":"IF((SUM(Table4510[Votos Obtenidos]))>D7,\"Se invalida la elección\",CONCATENATE(\"Abstinentes \",(D7-(SUM(Table4510[Votos Obtenidos])))))","v":"Abstinentes 50"},null,null,null,null,{"$f":"IF((SUM(Table45711[Votos Obtenidos]))>D7,\"Se invalida la elección\",CONCATENATE(\"Abstinentes \",(D7-(SUM(Table45711[Votos Obtenidos])))))","v":"Abstinentes 50"}]
[null,"Nº","Apellidos y Nombre","Cédula","Votos Obtenidos",null,"Nº","Apellidos y Nombre","Cédula","Votos Obtenidos"]
[null,1,"Lucas Navarro Gutierrez",107820619,null,null,1,"Susan Madrgal Monge",111820145]
[null,2,"Alejandra Cordero Solano",303490792,null,null,2,"Carlos Porras Navarro",110200914]
[null,3,"Susan Madrgal Monge",106150321,null,null,3,"Pedro Chacón Porras",305930506]
[null,4,"Jostin Rivera Mena",305720433,null,null,4,"Esmeralda Cordero Jimenez",306030836]
[null,5,"Marry Paz Solis Cordero",107760272,null,null,5,"Lucas Navarro Gutierrez",306050998]
[null,6,"Carlos Porras Navarro",303620422,null,null,6,"Marry Paz Solis Cordero",306080725]
[null,7,"Pedro Chacón Porras",900770486]
[null,8,"Leda Cordero Jimenez",107260360]
[null,9,"Teresita Castro Mata",107290726]
[null,10,"Tania  Gutierrrez Cascante",303650273]
[null,11,"Dora Guevara Vasquez",601880139]
[null,12,"Jenny Chinchilla Rivera",602830257]
[null,13,"Briana Marìn Chacon",305900265]
[null,14,"Vivian Chacón Porras",109460567]
[null,15,"Francisco Porras Navarro",106720949]

{"sheet":"Resultados","index":1,"n_rows":28,"n_cols":7,"rows_kept":28,"cut":false,"hidden":false,"merged":[[25,0,25,6],[26,0,26,4],[26,5,26,6],[2,0,2,6],[10,0,10,6],[11,0,11,4],[11,5,11,6],[21,0,21,4],[21,5,21,6],[6,0,6,4],[6,5,6,6],[4,0,4,6],[16,0,16,4],[16,5,16,6],[20,0,20,6],[5,0,5,4],[5,5,5,6],[15,0,15,6]]}
[]
[]
["ASAMBLEA CONSTITUTIVA COOPEXXX R.L."]
[]
["VOTACIÓN CONSEJO DE ADMINISTRACIÓN"]
["Debe votar por  5 candidatos, todos propietarios, escribiendo en los espacios correspondientes los números que acompañan a los candidatos de su preferencia según se detalla en la pizarra.",null,null,null,null,"Debe votar por  2 candidatos, todos suplentes, escribiendo en los espacios correspondientes los números que acompañan a los candidatos de su preferencia según se detalla en la pizarra."]
["PROPIETARIOS",null,null,null,null,"SUPLENTES"]
[{"$f":"IF(VOTACIÓN!E14=0,\"\",VLOOKUP(1,VOTACIÓN!$B$14:$E$28,2))","v":"Marta Solís Agüero"},{"$f":"IF(VOTACIÓN!E15=0,\"\",VLOOKUP(2,VOTACIÓN!$B$14:$E$28,2))","v":"Jenny Chinchilla Rivera"},{"$f":"IF(VOTACIÓN!E16=0,\"\",VLOOKUP(3,VOTACIÓN!$B$14:$E$28,2))","v":"Jostin Rivera Mena"},{"$f":"IF(VOTACIÓN!E17=0,\"\",VLOOKUP(4,VOTACIÓN!$B$14:$E$28,2))","v":"Dora Guevara Vasquez"},{"$f":"IF(VOTACIÓN!E18=0,\"\",VLOOKUP(5,VOTACIÓN!$B$14:$E$28,2))","v":"Vivian Chacón Porras"},{"$f":"IF(VOTACIÓN!J14=0,\"\",VLOOKUP(1,VOTACIÓN!$G$14:$J$15,2))","v":""},{"$f":"IF(VOTACIÓN!J15=0,\"\",VLOOKUP(2,VOTACIÓN!$G$14:$J$15,2))","v":""}]
[]
[]
["VOTACIÓN COMITÉ DE VIGILANCIA"]
["PROPIETARIOS",null,null,null,null,"SUPLENTES"]
[{"$f":"IF(VOTACIÓN!E36=0,\"\",VLOOKUP(1,VOTACIÓN!$B$36:$E$50,2))","v":""},{"$f":"IF(VOTACIÓN!E37=0,\"\",VLOOKUP(2,VOTACIÓN!$B$36:$E$50,2))","v":""},{"$f":"IF(VOTACIÓN!E38=0,\"\",VLOOKUP(3,VOTACIÓN!$B$36:$E$50,2))","v":""},{"$f":"IF(VOTACIÓN!E39=0,\"\",VLOOKUP(4,VOTACIÓN!$B$36:$E$50,2))","v":""},{"$f":"IF(VOTACIÓN!E40=0,\"\",VLOOKUP(5,VOTACIÓN!$B$36:$E$50,2))","v":""},{"$f":"IF(VOTACIÓN!J36=0,\"\",VLOOKUP(1,VOTACIÓN!$G$36:$J$37,2))","v":""},{"$f":"IF(VOTACIÓN!J37=0,\"\",VLOOKUP(2,VOTACIÓN!$G$36:$J$37,2))","v":""}]
[]
[]
["VOTACIÓN COMITÉ DE BIENESTAR SOCIAL Y EDUCACIÓN "]
["PROPIETARIOS",null,null,null,null,"SUPLENTES"]
[{"$f":"IF(VOTACIÓN!E58=0,\"\",VLOOKUP(1,VOTACIÓN!$B$57:$E$71,2))","v":""},{"$f":"IF(VOTACIÓN!E59=0,\"\",VLOOKUP(2,VOTACIÓN!$B$57:$E$71,2))","v":""},{"$f":"IF(VOTACIÓN!E60=0,\"\",VLOOKUP(3,VOTACIÓN!$B$57:$E$71,2))","v":""},{"$f":"IF(VOTACIÓN!E61=0,\"\",VLOOKUP(4,VOTACIÓN!$B$57:$E$71,2))","v":""},{"$f":"IF(VOTACIÓN!E62=0,\"\",VLOOKUP(5,VOTACIÓN!$B$57:$E$71,2))","v":""},{"$f":"IF(VOTACIÓN!J58=0,\"\",VLOOKUP(1,VOTACIÓN!$G$58:$J$59,2))","v":""},{"$f":"IF(VOTACIÓN!J59=0,\"\",VLOOKUP(2,VOTACIÓN!$G$58:$J$59,2))","v":""}]
[]
[]
["VOTACIÓN COMITÉ DE AHORRO"]
["PROPIETARIOS",null,null,null,null,"SUPLENTES"]
[{"$f":"IF(VOTACIÓN!E80=0,\"\",VLOOKUP(1,VOTACIÓN!$B$80:$E$94,2))","v":""},{"$f":"IF(VOTACIÓN!E81=0,\"\",VLOOKUP(2,VOTACIÓN!$B$80:$E$94,2))","v":""},{"$f":"IF(VOTACIÓN!E82=0,\"\",VLOOKUP(3,VOTACIÓN!$B$80:$E$94,2))","v":""},{"$f":"IF(VOTACIÓN!E83=0,\"\",VLOOKUP(4,VOTACIÓN!$B$80:$E$94,2))","v":""},{"$f":"IF(VOTACIÓN!E84=0,\"\",VLOOKUP(5,VOTACIÓN!$B$80:$E$94,2))","v":""},{"$f":"IF(VOTACIÓN!J80=0,\"\",VLOOKUP(1,VOTACIÓN!$G$80:$J$81,2))","v":""},{"$f":"IF(VOTACIÓN!J81=0,\"\",VLOOKUP(2,VOTACIÓN!$G$80:$J$81,2))","v":""}]
[]
[]
["VOTACIÓN COMITÉ ASESOR"]
["PROPIETARIOS",null,null,null,null,"SUPLENTES"]
[{"$f":"IF(VOTACIÓN!E102=0,\"\",VLOOKUP(1,VOTACIÓN!$B$102:$E$116,2))","v":""},{"$f":"IF(VOTACIÓN!E103=0,\"\",VLOOKUP(2,VOTACIÓN!$B$102:$E$116,2))","v":""},{"$f":"IF(VOTACIÓN!E104=0,\"\",VLOOKUP(3,VOTACIÓN!$B$102:$E$116,2))","v":""},{"$f":"IF(VOTACIÓN!E105=0,\"\",VLOOKUP(4,VOTACIÓN!$B$102:$E$116,2))","v":""},{"$f":"IF(VOTACIÓN!E106=0,\"\",VLOOKUP(5,VOTACIÓN!$B$102:$E$107,2))","v":""},{"$f":"IF(VOTACIÓN!J102=0,\"\",VLOOKUP(1,VOTACIÓN!G102:H107,2))","v":""},{"$f":"IF(VOTACIÓN!J103=0,\"\",VLOOKUP(2,VOTACIÓN!$G$102:$H$103,2))","v":""}]